bitfinex/quotes_BTCUSD_20220303
["timestamp","ask_amount","ask_price","bid_price","bid_amount"]
[1646285494800,0.3,43386.0,43383.0,0.0011]
[1646285494998,0.355385,43385.0,43383.0,0.0011]
[1646285495198,0.1462,43384.0,43383.0,0.0011]
[1646285495397,0.618533,43384.0,43383.0,0.0011]
[1646285495598,0.72005233,43384.0,43383.0,0.0011]
[1646285495854,0.42005233,43384.0,43383.0,0.0011]
[1646285496051,0.42005233,43384.0,43360.0,0.115364]
[1646285496052,0.172333,43380.0,43360.0,0.115364]
[1646285496259,0.02305,43371.0,43357.0,0.0011]
[1646285496451,0.02305,43371.0,43355.0,0.246]
[1646285496452,0.172333,43364.0,43355.0,0.246]
[1646285496654,0.5771,43365.0,43360.0,0.15]
[1646285496655,0.0462,43363.0,43360.0,0.15]
[1646285496952,0.0462,43363.0,43356.0,0.355385]
[1646285496953,0.5771,43365.0,43364.0,0.0924]
[1646285497155,0.27858813,43381.0,43366.0,0.057677]
[1646285497354,0.355385,43380.0,43369.0,0.057673]
[1646285497554,0.355385,43380.0,43377.0,0.25428452]
[1646285498252,0.355385,43380.0,43376.0,0.2192877]
[1646285498253,0.355385,43380.0,43372.0,0.00014903]
[1646285498951,0.355385,43380.0,43369.0,0.1201]
[1646285499156,0.5691335,43380.0,43374.0,0.20655462]
[1646285499352,0.355385,43380.0,43374.0,0.20655462]
[1646285499629,0.355385,43380.0,43370.0,0.0462]
[1646285500228,0.355385,43380.0,43375.0,0.1582751]
[1646285500429,0.355385,43380.0,43373.0,0.00015885]
[1646285500630,0.355385,43380.0,43376.0,0.25199481]
[1646285500827,0.356385,43380.0,43374.0,0.0462]
[1646285501629,0.356385,43380.0,43375.0,0.00015885]
[1646285502029,0.355385,43380.0,43375.0,0.00015885]
[1646285502229,0.355385,43380.0,43375.0,0.16239672]
[1646285502431,0.355385,43380.0,43375.0,0.16223787]
[1646285502634,0.355385,43380.0,43375.0,0.16239672]
[1646285503640,0.355385,43380.0,43375.0,0.16223787]
[1646285503841,0.355385,43380.0,43375.0,0.16239637]
[1646285504041,0.355385,43380.0,43375.0,0.2537678]
[1646285504640,0.355385,43380.0,43375.0,0.0001585]
[1646285504943,0.355385,43380.0,43373.0,0.2025372]
[1646285504944,0.355385,43380.0,43373.0,0.37202614]
[1646285505241,0.360385,43380.0,43375.0,0.0001585]
[1646285506041,0.360385,43380.0,43375.0,0.16142089]
[1646285506242,0.355385,43380.0,43375.0,0.0001585]
[1646285507003,0.360385,43380.0,43375.0,0.0001585]
[1646285507400,0.418065,43380.0,43374.0,0.25917488]
[1646285507601,0.418065,43380.0,43375.0,0.04635855]
[1646285508300,0.413065,43380.0,43375.0,0.04635855]
[1646285508503,0.413065,43380.0,43375.0,0.0462]
[1646285508703,0.413065,43380.0,43375.0,0.04635295]
[1646285509205,0.417065,43380.0,43375.0,0.04635295]
[1646285509804,0.417065,43380.0,43375.0,0.0462]
[1646285510405,0.413065,43380.0,43375.0,0.0462]
[1646285510939,0.413065,43380.0,43376.0,0.15495845]
[1646285511139,0.413065,43380.0,43377.0,0.0462]
[1646285511342,0.413065,43380.0,43378.0,0.3]
[1646285511343,0.355385,43380.0,43378.0,0.3]
[1646285511543,0.355385,43380.0,43379.0,0.0462]
[1646285511544,0.359385,43380.0,43379.0,0.0462]
[1646285511742,0.004,43380.0,43379.0,0.0462]
[1646285511941,0.004,43380.0,43379.0,0.978685]
[1646285512244,0.004,43380.0,43379.0,1.08615341]
[1646285512843,0.05,43389.0,43386.0,0.230976]
[1646285513042,0.355385,43388.0,43387.0,0.0462]
[1646285513442,0.03134559,43386.0,43379.0,0.005]
[1646285513641,0.03134559,43386.0,43380.0,0.0462]
[1646285514042,0.355385,43385.0,43384.0,0.27173954]
[1646285514243,0.03134559,43386.0,43384.0,0.31793954]
[1646285514705,0.355385,43385.0,43384.0,0.31793954]
[1646285514908,0.03134559,43386.0,43384.0,0.31993954]
[1646285515105,0.355385,43385.0,43384.0,0.31993954]
[1646285515706,0.03134559,43386.0,43384.0,0.31993954]
[1646285516107,0.03134559,43386.0,43384.0,0.31793954]
[1646285516309,0.03134559,43386.0,43385.0,0.655385]
[1646285516509,0.03134559,43386.0,43385.0,0.53898988]
[1646285519152,0.03134559,43386.0,43385.0,0.3462]
[1646285520256,0.03134559,43386.0,43385.0,0.54816796]
[1646285525410,0.03101762,43386.0,43385.0,0.54816796]
[1646285526446,0.03101762,43386.0,43385.0,0.57121796]
[1646285526849,0.03101762,43386.0,43385.0,0.57621796]
[1646285527446,0.03101762,43386.0,43385.0,0.57121796]
[1646285528647,0.03101762,43386.0,43385.0,0.54816796]
[1646285530300,0.03101762,43386.0,43384.0,0.27173954]
[1646285530897,0.355385,43391.0,43384.0,0.27173954]
[1646285531497,0.355385,43391.0,43385.0,0.00015835]
[1646285531899,0.3,43390.0,43385.0,0.00015835]
[1646285532099,0.3,43390.0,43379.0,0.1180335]
[1646285532100,0.172333,43389.0,43379.0,0.10505115]
[1646285532298,0.43641,43390.0,43379.0,0.0006335]
[1646285532299,0.17453084,43384.0,43379.0,0.0006335]
[1646285532500,0.057679,43382.0,43379.0,0.0006335]
[1646285532699,0.057679,43382.0,43369.0,0.3]
[1646285532898,0.057679,43382.0,43373.0,0.21008297]
[1646285532899,0.22563515,43379.0,43373.0,0.21008297]
[1646285533099,0.22563515,43379.0,43370.0,0.06863369]
[1646285533347,0.22563515,43379.0,43372.0,0.1724116]
[1646285533742,0.22563515,43379.0,43370.0,0.06863369]
[1646285534543,0.22563515,43379.0,43370.0,0.07263369]
[1646285534744,0.22563515,43379.0,43371.0,0.15442616]
[1646285535143,0.22563515,43379.0,43372.0,0.00015848]
[1646285535343,0.01152,43385.0,43372.0,0.00015848]
[1646285535544,0.02305,43384.0,43372.0,0.30015848]
[1646285535744,0.172333,43383.0,43372.0,0.30015848]
[1646285535947,0.02305,43384.0,43372.0,0.30015848]
[1646285536146,0.355385,43383.0,43372.0,0.3]
[1646285536349,0.355385,43383.0,43375.0,0.00015848]
[1646285536549,0.355385,43383.0,43375.0,0.16903597]
[1646285537396,0.355385,43383.0,43375.0,0.16887749]
[1646285537596,0.172333,43381.0,43377.0,0.00015835]
[1646285538498,0.172333,43381.0,43376.0,0.22234818]
[1646285538699,0.355385,43384.0,43377.0,0.00015835]
[1646285538898,0.21542582,43382.0,43377.0,0.00015835]
[1646285539100,0.11152,43383.0,43377.0,0.00015835]
[1646285539300,0.1,43383.0,43377.0,0.00015835]
[1646285539699,0.1,43383.0,43376.0,0.3]
[1646285539898,0.1,43383.0,43378.0,0.00015835]
[1646285540101,0.1,43383.0,43378.0,0.2809009]
[1646285540102,0.355385,43382.0,43378.0,0.2809009]
[1646285540301,0.01152,43385.0,43378.0,0.2809009]
[1646285540505,0.355385,43383.0,43379.0,0.3]
[1646285540740,0.355385,43386.0,43379.0,0.3]
[1646285541149,0.355385,43386.0,43379.0,0.30015837]
[1646285541344,0.006,43388.0,43380.0,0.057658]
[1646285541545,0.006,43388.0,43379.0,0.30015837]
[1646285541743,0.05,43390.0,43379.0,0.30015837]
[1646285541943,0.23012,43397.0,43379.0,0.30015837]
[1646285542143,0.19482907,43394.0,43379.0,0.3]
[1646285542342,0.19482907,43394.0,43382.0,0.00015837]
[1646285542343,0.28707501,43390.0,43382.0,0.00015837]
[1646285542543,0.355385,43389.0,43382.0,0.00015837]
[1646285543341,0.355385,43389.0,43379.0,0.302]
[1646285543542,0.355385,43391.0,43383.0,0.00014356]
[1646285543744,0.1,43390.0,43383.0,0.00014356]
[1646285543941,0.172333,43389.0,43383.0,0.00014356]
[1646285544499,0.172333,43389.0,43376.0,0.3]
[1646285544699,0.104,43390.0,43371.0,0.16594616]
[1646285544700,0.355385,43388.0,43383.0,0.00015836]
[1646285544904,0.172333,43387.0,43383.0,0.00015836]
[1646285545800,0.172333,43387.0,43376.0,0.52738923]
[1646285546000,0.355385,43389.0,43383.0,0.00015836]
[1646285546500,0.172333,43386.0,43383.0,0.00015836]
[1646285546901,0.172333,43386.0,43382.0,0.19781766]
[1646285547101,0.172333,43386.0,43382.0,0.19797602]
[1646285547303,0.172333,43386.0,43382.0,0.00015836]
[1646285548237,0.172333,43386.0,43376.0,0.52738923]
[1646285548438,0.057666,43390.0,43382.0,0.00015836]
[1646285548638,0.355385,43389.0,43382.0,0.00015836]
[1646285549438,0.355385,43389.0,43379.0,0.19439827]
[1646285549638,0.355385,43389.0,43383.0,0.00015836]
[1646285550039,0.355385,43389.0,43385.0,0.20595212]
[1646285550240,0.355385,43389.0,43385.0,0.17336715]
[1646285550438,0.355385,43389.0,43383.0,0.00015836]
[1646285550640,0.355385,43389.0,43380.0,0.3]
[1646285550841,0.355385,43391.0,43383.0,0.00015837]
[1646285551240,0.03477999,43392.0,43383.0,0.00015837]
[1646285551241,0.172333,43389.0,43383.0,0.00015837]
[1646285551447,0.03477999,43392.0,43387.0,0.37609823]
[1646285551642,0.172333,43391.0,43387.0,0.19286571]
[1646285551841,0.355385,43391.0,43387.0,0.19286571]
[1646285552100,0.01152,43397.0,43387.0,0.41026788]
[1646285552101,0.355385,43390.0,43387.0,0.41026788]
[1646285552302,0.01152,43397.0,43383.0,0.30015837]
[1646285552502,0.006,43391.0,43383.0,0.48505627]
[1646285553702,0.31354084,43394.0,43383.0,0.48505627]
[1646285553900,0.355385,43393.0,43384.0,0.17386944]
[1646285554501,0.358385,43393.0,43384.0,0.17386944]
[1646285555103,0.358385,43393.0,43387.0,0.25810874]
[1646285555950,0.358385,43393.0,43384.0,0.17386944]
[1646285555951,0.355385,43393.0,43384.0,0.17386944]
[1646285556553,0.355385,43393.0,43384.0,0.17486944]
[1646285556856,0.355385,43393.0,43384.0,0.001]
[1646285557352,0.23205964,43391.0,43385.0,0.26785258]
[1646285557553,0.172333,43390.0,43385.0,0.26785258]
[1646285558552,0.001,43390.0,43385.0,0.26785258]
[1646285560397,0.355385,43389.0,43385.0,0.26785258]
[1646285560995,0.355385,43389.0,43383.0,0.00015837]
[1646285561495,0.002,43390.0,43383.0,0.00015836]
[1646285561695,0.355385,43389.0,43383.0,0.00015836]
[1646285562596,0.355385,43389.0,43383.0,0.002]
[1646285562799,0.413052,43389.0,43383.0,0.00215836]
[1646285563258,0.172333,43384.0,43383.0,0.00215836]
[1646285563756,0.172333,43384.0,43383.0,0.002]
[1646285563959,0.057667,43389.0,43381.0,0.00015836]
[1646285564158,0.355385,43388.0,43381.0,0.00015836]
[1646285564356,0.172333,43386.0,43381.0,0.00015836]
[1646285564558,0.003,43384.0,43381.0,0.00015836]
[1646285565057,0.003,43384.0,43383.0,0.20555874]
[1646285565256,0.003,43384.0,43380.0,0.00015836]
[1646285565857,0.057667,43389.0,43380.0,0.00015836]
[1646285566056,0.355385,43388.0,43380.0,0.00015836]
[1646285566256,0.355385,43388.0,43382.0,0.21362596]
[1646285566460,0.355385,43388.0,43382.0,0.21378432]
[1646285566658,0.21611429,43387.0,43382.0,0.21378432]
[1646285566857,0.172333,43386.0,43382.0,0.00015836]
[1646285567510,0.172333,43386.0,43378.0,0.3]
[1646285567806,0.355385,43388.0,43382.0,0.00015836]
[1646285568608,0.358385,43388.0,43380.0,0.27565944]
[1646285568807,0.358385,43388.0,43383.0,0.00015836]
[1646285569811,0.355385,43388.0,43380.0,0.27565944]
[1646285570012,0.355385,43388.0,43383.0,0.00015836]
[1646285570611,0.358385,43388.0,43383.0,0.20375145]
[1646285570859,0.003,43388.0,43383.0,0.20375145]
[1646285571057,0.003,43388.0,43383.0,0.20359309]
[1646285571256,0.003,43388.0,43383.0,0.20375145]
[1646285571454,0.003,43388.0,43387.0,0.28342986]
[1646285571855,0.355385,43391.0,43387.0,0.28342986]
[1646285572261,0.355385,43391.0,43387.0,0.28334791]
[1646285572661,0.03535003,43392.0,43388.0,0.0462]
[1646285572862,0.03535003,43392.0,43388.0,0.403847]
[1646285573058,0.03535003,43392.0,43388.0,0.103847]
[1646285573260,0.1241,43400.0,43388.0,0.103847]
[1646285573458,0.355385,43399.0,43389.0,0.3]
[1646285573659,0.26837132,43398.0,43389.0,0.3462]
[1646285574158,0.355385,43397.0,43389.0,0.3462]
[1646285574359,0.26837132,43398.0,43389.0,0.0462]
[1646285574604,0.27778813,43400.0,43389.0,0.0462]
[1646285574806,0.355385,43399.0,43389.0,0.0462]
[1646285575403,0.355385,43399.0,43390.0,0.3]
[1646285575803,0.001,43396.0,43389.0,0.0462]
[1646285576806,0.001,43396.0,43393.0,0.23792134]
[1646285577003,0.21035845,43400.0,43393.0,0.23792134]
[1646285577204,0.355385,43399.0,43393.0,0.23792134]
[1646285577804,0.355385,43399.0,43393.0,0.23122134]
[1646285578240,0.355385,43399.0,43390.0,0.16099637]
[1646285579445,0.355385,43399.0,43387.0,0.3]
[1646285579843,0.355385,43399.0,43385.0,0.1218]
[1646285579844,0.93220995,43399.0,43385.0,0.1218]
[1646285580047,0.93420995,43399.0,43385.0,0.1228]
[1646285580847,0.15447457,43395.0,43390.0,0.22561236]
[1646285581045,0.172333,43394.0,43390.0,0.22561236]
[1646285581645,0.355385,43399.0,43390.0,0.22561236]
[1646285582103,0.172333,43395.0,43390.0,0.22661236]
[1646285582704,0.355385,43395.0,43390.0,0.22661236]
[1646285582902,0.172333,43395.0,43390.0,0.22661236]
[1646285583104,0.55617872,43395.0,43390.0,0.22661236]
[1646285583304,0.55617872,43395.0,43390.0,0.22561236]
[1646285583503,0.172333,43395.0,43390.0,0.22561236]
[1646285583904,0.38384572,43396.0,43390.0,0.22561236]
[1646285584103,0.355385,43395.0,43390.0,0.22661236]
[1646285584304,0.38384572,43397.0,43390.0,0.28425536]
[1646285584504,0.355385,43396.0,43390.0,0.28425536]
[1646285584705,0.38384572,43397.0,43390.0,0.28425536]
[1646285585005,0.73923072,43397.0,43391.0,0.0462]
[1646285585208,0.73923072,43397.0,43392.0,0.3]
[1646285585405,0.355385,43397.0,43392.0,0.3]
[1646285585606,0.355385,43397.0,43391.0,0.0462]
[1646285586043,0.357385,43397.0,43391.0,0.0462]
[1646285586444,0.352385,43397.0,43391.0,0.0462]
[1646285587249,0.350385,43397.0,43391.0,0.0462]
[1646285588048,0.353385,43397.0,43390.0,0.22561236]
[1646285588249,0.73723072,43397.0,43390.0,0.22561236]
[1646285589250,0.73423072,43397.0,43390.0,0.22561236]
[1646285589501,0.38384572,43398.0,43390.0,0.22561236]
[1646285589701,0.38384572,43398.0,43391.0,0.3462]
[1646285589903,0.01232073,43402.0,43396.0,0.20244582]
[1646285589904,0.38384572,43399.0,43396.0,0.20244582]
[1646285590204,0.355684,43398.0,43396.0,0.20244582]
[1646285591103,0.355684,43398.0,43397.0,0.27990006]
[1646285591304,0.355684,43398.0,43395.0,0.057635]
[1646285591503,0.355684,43398.0,43392.0,0.16066261]
[1646285591706,0.38384572,43400.0,43392.0,0.0462]
[1646285591907,0.355684,43399.0,43392.0,0.0462]
[1646285592105,0.355684,43399.0,43392.0,0.0343232]
[1646285592306,0.20304445,43396.0,43392.0,0.02755938]
[1646285592507,0.15368813,43401.0,43392.0,0.02755938]
[1646285592708,0.355684,43400.0,43392.0,0.32755938]
[1646285592907,0.166988,43401.0,43392.0,0.32755938]
[1646285594148,0.166988,43401.0,43392.0,0.32955938]
[1646285594549,0.166988,43401.0,43393.0,0.18007937]
[1646285595352,0.00080073,43402.0,43393.0,0.18007937]
[1646285595552,0.00080073,43402.0,43401.0,0.26112856]
[1646285595952,0.00080073,43402.0,43401.0,0.56112856]
[1646285596354,0.00080073,43402.0,43401.0,0.91681256]
[1646285596556,0.00080073,43402.0,43401.0,0.96301256]
[1646285597998,0.00080073,43402.0,43401.0,0.96701256]
[1646285598199,0.00080073,43402.0,43401.0,0.99006256]
[1646285599102,0.00080073,43402.0,43401.0,1.06455067]
[1646285599303,0.00080073,43402.0,43401.0,1.20055067]
[1646285599802,0.00080073,43402.0,43401.0,1.90195067]
[1646285600002,0.00080073,43402.0,43401.0,1.20555067]
[1646285600204,0.00080073,43402.0,43401.0,1.86831681]
[1646285600403,0.00080073,43402.0,43401.0,1.16691564]
[1646285600848,0.00080073,43402.0,43401.0,1.20555067]
[1646285601048,0.00080073,43402.0,43401.0,2.01831564]
[1646285601250,0.00080073,43402.0,43401.0,2.01331564]
[1646285601849,0.00080073,43402.0,43401.0,2.05195067]
[1646285602047,0.00080073,43402.0,43401.0,2.11331447]
[1646285602249,0.00080073,43402.0,43401.0,2.11931447]
[1646285602449,0.05,43416.0,43410.0,0.057606]
[1646285602648,0.1894,43422.0,43411.0,0.701884]
[1646285602848,0.1894,43422.0,43419.0,0.27038448]
[1646285603050,0.28380005,43424.0,43419.0,0.31658448]
[1646285603051,0.0115,43424.0,43419.0,0.31658448]
[1646285603449,0.0115,43424.0,43420.0,0.1804821]
[1646285603653,0.01164872,43424.0,43421.0,0.0462]
[1646285604252,0.00014872,43424.0,43421.0,0.0462]
[1646285604501,0.00114872,43424.0,43421.0,0.0462]
[1646285604701,0.001,43424.0,43421.0,0.0462]
[1646285605703,0.00216967,43425.0,43421.0,0.0462]
[1646285605904,0.00202096,43425.0,43421.0,0.0462]
[1646285606103,0.00216991,43425.0,43421.0,0.33073729]
[1646285606503,0.00216991,43425.0,43421.0,0.0462]
[1646285606702,0.05978891,43425.0,43421.0,0.0462]
[1646285607102,0.002,43424.0,43421.0,0.0462]
[1646285607503,0.002,43424.0,43421.0,0.26527878]
[1646285607705,0.002,43424.0,43421.0,0.0462]
[1646285608372,0.17510398,43425.0,43421.0,0.001]
[1646285608567,0.1752626,43425.0,43421.0,0.001]
[1646285608768,0.59839942,43425.0,43421.0,0.001]
[1646285608972,0.02305,43424.0,43421.0,0.001]
[1646285609168,0.19360754,43424.0,43421.0,0.001]
[1646285609567,0.25122754,43424.0,43421.0,0.001]
[1646285609767,0.22817754,43424.0,43414.0,0.0462]
[1646285610167,0.22817754,43424.0,43415.0,0.21775616]
[1646285610867,0.00015826,43422.0,43415.0,0.21775616]
[1646285611066,0.00015826,43422.0,43413.0,0.3]
[1646285611871,0.05762,43424.0,43413.0,0.3]
[1646285612123,0.00015826,43420.0,43414.0,0.21498819]
[1646285612331,0.00015826,43420.0,43413.0,0.3]
[1646285612522,0.00015826,43420.0,43413.0,0.302]
[1646285613123,0.26738891,43424.0,43413.0,0.302]
[1646285613322,0.26738891,43424.0,43416.0,0.2108574]
[1646285613323,0.00015832,43419.0,43416.0,0.2108574]
[1646285613524,0.00015832,43419.0,43413.0,0.302]
[1646285613724,0.00015832,43419.0,43413.0,0.002]
[1646285613925,0.00015832,43419.0,43415.0,0.20249049]
[1646285614226,0.26738891,43424.0,43415.0,0.20249049]
[1646285614423,0.003,43419.0,43417.0,0.26162705]
[1646285614622,0.00315831,43419.0,43417.0,0.26162705]
[1646285615425,0.00291995,43419.0,43417.0,0.26162705]
[1646285615627,0.26738891,43424.0,43417.0,0.26162705]
[1646285615844,0.00015831,43420.0,43415.0,0.20249049]
[1646285616444,0.00015831,43420.0,43417.0,0.001]
[1646285616645,0.003,43424.0,43417.0,0.001]
[1646285617046,0.00015831,43420.0,43417.0,0.001]
[1646285617849,0.00202096,43425.0,43416.0,0.19630555]
[1646285618048,0.00014292,43421.0,43416.0,0.19630555]
[1646285618247,0.003,43420.0,43416.0,0.19630555]
[1646285619051,0.003,43420.0,43412.0,0.001]
[1646285619052,0.02305,43418.0,43412.0,0.001]
[1646285619253,0.02305,43416.0,43412.0,0.001]
[1646285619521,0.02305,43416.0,43402.0,0.00240219]
[1646285619524,0.166988,43413.0,43402.0,0.00240219]
[1646285619719,0.02305,43410.0,43402.0,0.00240219]
[1646285619918,0.166988,43409.0,43402.0,0.00240219]
[1646285620521,0.00014346,43408.0,43402.0,0.00240219]
[1646285620723,0.355684,43407.0,43402.0,0.00240219]
[1646285621522,0.224637,43404.0,43402.0,0.00240219]
[1646285621724,0.166988,43404.0,43402.0,0.00240219]
[1646285622023,0.355684,43406.0,43402.0,0.00240219]
[1646285622425,0.00014346,43407.0,43402.0,0.00240219]
[1646285622624,0.355684,43406.0,43402.0,0.00240219]
[1646285622820,0.23290355,43409.0,43402.0,0.00240219]
[1646285623020,0.00014508,43406.0,43402.0,0.00240219]
[1646285623279,0.355684,43405.0,43402.0,0.00240219]
[1646285623479,0.166988,43405.0,43402.0,0.00240219]
[1646285623881,0.355684,43408.0,43402.0,0.00240219]
[1646285624083,0.00014501,43406.0,43402.0,0.00240219]
[1646285624880,0.00014501,43406.0,43403.0,0.19378385]
[1646285625080,0.362639,43410.0,43403.0,0.19378385]
[1646285625280,0.00014501,43406.0,43403.0,0.19378385]
[1646285626080,2.393483,43405.0,43402.0,0.00240219]
[1646285627306,2.393483,43405.0,43402.0,0.17409043]
[1646285627705,2.393483,43405.0,43402.0,0.00240219]
[1646285628107,2.398483,43405.0,43402.0,0.00240219]
[1646285629405,2.393483,43405.0,43402.0,0.00240219]
[1646285630208,2.399483,43405.0,43402.0,0.00240219]
[1646285631446,2.393483,43405.0,43402.0,0.00240219]
[1646285633848,2.393483,43405.0,43404.0,0.27344475]
[1646285634052,2.393483,43405.0,43402.0,0.00240219]
[1646285635301,2.393483,43405.0,43402.0,0.23577964]
[1646285635899,2.393483,43405.0,43402.0,0.23571835]
[1646285636302,2.393483,43405.0,43402.0,0.23071835]
[1646285636500,0.00015873,43406.0,43400.0,0.21113864]
[1646285636901,0.00015873,43406.0,43401.0,0.355684]
[1646285637099,0.003,43410.0,43400.0,0.26876664]
[1646285637300,0.00015814,43406.0,43401.0,0.355684]
[1646285637500,0.00015814,43406.0,43400.0,0.21113864]
[1646285637703,0.00015814,43406.0,43401.0,0.355684]
[1646285637898,0.00015814,43406.0,43400.0,0.21113864]
[1646285638098,0.00115814,43406.0,43400.0,0.21113864]
[1646285638360,0.001,43406.0,43400.0,0.21113864]
[1646285638560,0.00115767,43406.0,43400.0,0.21113864]
[1646285638758,0.00115767,43406.0,43400.0,0.49732738]
[1646285639359,0.00015767,43406.0,43400.0,0.49732738]
[1646285639562,0.357638,43411.0,43400.0,0.21113864]
[1646285639759,0.00015767,43406.0,43400.0,0.21113864]
[1646285640659,0.357638,43411.0,43401.0,0.22567395]
[1646285640660,0.355684,43405.0,43401.0,0.22567395]
[1646285641060,0.355684,43405.0,43400.0,0.21113864]
[1646285642203,0.355684,43405.0,43401.0,0.27368744]
[1646285643408,0.355684,43405.0,43400.0,0.21113864]
[1646285643607,0.00015835,43406.0,43400.0,0.21113864]
[1646285644206,0.1,43410.0,43400.0,0.21113864]
[1646285644407,0.355684,43409.0,43403.0,0.2463295]
[1646285644606,0.00015835,43406.0,43400.0,0.21113864]
[1646285645208,0.00015835,43406.0,43400.0,0.20113864]
[1646285645407,0.1,43410.0,43400.0,0.20113864]
[1646285645610,0.355684,43409.0,43400.0,0.20113864]
[1646285645850,0.00015832,43406.0,43400.0,0.20113864]
[1646285646653,0.1,43410.0,43400.0,0.20113864]
[1646285646953,0.00015832,43406.0,43400.0,0.20113864]
[1646285647155,0.27703188,43405.0,43400.0,0.20113864]
[1646285647352,0.00015832,43406.0,43400.0,0.20113864]
[1646285647954,0.3,43408.0,43400.0,0.20113864]
[1646285648157,0.00014293,43406.0,43400.0,0.20113864]
[1646285649154,0.355684,43405.0,43400.0,0.20113864]
[1646285649357,0.00014294,43406.0,43400.0,0.20113864]
[1646285650304,0.0115,43410.0,43400.0,0.20113864]
[1646285650503,0.00014294,43406.0,43400.0,0.20113864]
[1646285651105,0.355684,43405.0,43400.0,0.20113864]
[1646285652104,0.22198,43404.0,43400.0,0.18290637]
[1646285652410,0.22198,43404.0,43400.0,0.18252335]
[1646285652605,0.057639,43409.0,43400.0,0.18252335]
[1646285652805,0.355684,43408.0,43400.0,0.18252335]
[1646285653004,0.0001451,43406.0,43400.0,0.18252335]
[1646285653854,0.166988,43405.0,43400.0,0.18252335]
[1646285654053,0.23037637,43406.0,43400.0,0.18252335]
[1646285654054,0.23052147,43406.0,43400.0,0.18252335]
[1646285654354,0.23052147,43406.0,43393.0,0.124]
[1646285654556,0.357645,43405.0,43395.0,0.003]
[1646285654758,0.355684,43404.0,43395.0,0.003]
[1646285655357,0.26952029,43399.0,43395.0,0.003]
[1646285655556,0.00014509,43406.0,43395.0,0.003]
[1646285655760,0.355684,43405.0,43394.0,0.15821096]
[1646285655956,0.166988,43403.0,43394.0,0.15821096]
[1646285656456,0.05765,43401.0,43394.0,0.15821096]
[1646285656858,0.05765,43401.0,43399.0,0.27227769]
[1646285657103,0.355684,43400.0,43399.0,0.27227769]
[1646285657308,0.355684,43400.0,43394.0,0.15821096]
[1646285657606,0.355684,43403.0,43394.0,0.15821096]
[1646285658310,0.3,43404.0,43394.0,0.15821096]
[1646285658506,0.3,43404.0,43395.0,0.26189336]
[1646285658910,0.355684,43402.0,43395.0,0.26189336]
[1646285659105,0.3,43404.0,43395.0,0.26189336]
[1646285659106,0.355684,43403.0,43395.0,0.26189336]
[1646285659507,0.355684,43402.0,43395.0,0.26189336]
[1646285659710,0.355684,43403.0,43395.0,0.26189336]
[1646285660510,0.357684,43403.0,43395.0,0.26189336]
[1646285661748,0.355684,43403.0,43394.0,0.15821096]
[1646285661947,0.3,43404.0,43394.0,0.15821096]
[1646285662450,0.355684,43403.0,43394.0,0.15821096]
[1646285663050,0.355684,43403.0,43397.0,0.24018801]
[1646285663252,0.355684,43403.0,43394.0,0.15821096]
[1646285663651,0.355684,43403.0,43393.0,0.18026239]
[1646285663652,1.03853054,43394.0,43393.0,0.18026239]
[1646285663854,1.03853054,43394.0,43392.0,0.355684]
[1646285664053,1.03853054,43394.0,43393.0,0.21695138]
[1646285664253,1.03853054,43394.0,43393.0,0.49956016]
[1646285664915,1.03853054,43394.0,43393.0,0.21695138]
[1646285666412,1.03853054,43394.0,43390.0,0.01392644]
[1646285668659,1.03953054,43394.0,43390.0,0.01392644]
[1646285669857,1.03953054,43394.0,43390.0,0.00242644]
[1646285670061,1.03853054,43394.0,43390.0,0.00242644]
[1646285670661,1.04053054,43394.0,43390.0,0.00242644]
[1646285671462,0.25700709,43391.0,43390.0,0.00242644]
[1646285672306,1.03853054,43394.0,43390.0,0.00242644]
[1646285672707,0.003,43391.0,43390.0,0.00242644]
[1646285673507,0.23741763,43391.0,43390.0,0.00242644]
[1646285673708,0.23441763,43391.0,43390.0,0.00242644]
[1646285673910,1.03853054,43394.0,43390.0,0.00242644]
[1646285674810,1.04153054,43394.0,43390.0,0.00242644]
[1646285675009,0.27510018,43392.0,43390.0,0.00242644]
[1646285675609,1.04153054,43394.0,43390.0,0.00242644]
[1646285675855,1.03853054,43394.0,43390.0,0.00242644]
[1646285676655,1.04153054,43394.0,43390.0,0.00242644]
[1646285677256,0.28415208,43393.0,43390.0,0.00242644]
[1646285678557,0.28715208,43393.0,43390.0,0.00242644]
[1646285679260,0.355684,43392.0,43390.0,0.00242644]
[1646285680115,0.58715208,43393.0,43390.0,0.00242644]
[1646285680517,0.355684,43392.0,43390.0,0.00242644]
[1646285680717,0.466988,43391.0,43390.0,0.00242644]
[1646285682421,0.513188,43391.0,43390.0,0.00242644]
[1646285682619,0.517188,43391.0,43390.0,0.00242644]
[1646285682822,0.517188,43391.0,43383.0,0.00014513]
[1646285682823,0.057674,43387.0,43383.0,0.00014513]
[1646285683023,0.166988,43386.0,43383.0,0.00014513]
[1646285683666,0.38018214,43386.0,43383.0,0.00014513]
[1646285683865,0.38018214,43386.0,43378.0,0.00058059]
[1646285684066,0.23551066,43379.0,43376.0,0.0022]
[1646285684266,0.33809414,43386.0,43376.0,0.00278056]
[1646285684471,0.355684,43385.0,43376.0,0.00278056]
[1646285685068,0.355684,43385.0,43376.0,0.0022]
[1646285685370,0.355684,43385.0,43378.0,0.00014501]
[1646285685568,0.23231491,43381.0,43378.0,0.00014501]
[1646285685767,0.166988,43380.0,43378.0,0.00014501]
[1646285686269,0.166988,43380.0,43376.0,0.0022]
[1646285686469,0.355684,43385.0,43377.0,0.00014483]
[1646285687313,0.28114958,43381.0,43377.0,0.00014483]
[1646285687519,0.14795,43386.0,43376.0,0.0022]
[1646285687714,0.14795,43386.0,43379.0,0.00014483]
[1646285687715,0.355684,43385.0,43379.0,0.00014483]
[1646285688714,0.355684,43385.0,43383.0,0.21410808]
[1646285689621,0.1209,43393.0,43384.0,0.3]
[1646285689622,0.355684,43390.0,43384.0,0.3]
[1646285689817,0.01152,43392.0,43384.0,0.3]
[1646285689818,0.355684,43392.0,43384.0,0.3]
[1646285690419,0.1209,43393.0,43392.0,0.21403914]
[1646285690420,0.476584,43393.0,43392.0,0.21403914]
[1646285690851,0.355684,43393.0,43392.0,0.21403914]
[1646285691753,1.39421454,43393.0,43392.0,0.21403914]
[1646285693151,1.39421454,43393.0,43376.0,0.571802]